bitfinex-derivatives/quotes_BTCF0:USTF0_20210111
["timestamp","ask_amount","ask_price","bid_price","bid_amount"]
[1610407109866,0.73569531,35129.0,35061.0,4.7105]
[1610407110364,0.13632608,35106.0,35105.0,0.13632608]
[1610407110565,0.22650608,35106.0,35105.0,0.13632608]
[1610407110963,0.09018,35106.0,35093.0,3.3374]
[1610407112962,0.09018,35106.0,35105.0,0.13632608]
[1610407114165,0.11257,35132.0,35105.0,0.13632608]
[1610407114466,0.11257,35132.0,35108.0,3.4989]
[1610407114866,0.11257,35132.0,35131.0,0.13632608]
[1610407115067,0.13632608,35133.0,35131.0,0.13632608]
[1610407115769,0.13632608,35133.0,35108.0,3.4989]
[1610407115971,0.22501608,35133.0,35108.0,3.4989]
[1610407116269,0.22501608,35133.0,35089.0,0.10844]
[1610407117171,0.08869,35133.0,35119.0,0.13632608]
[1610407118971,0.08869,35133.0,35132.0,0.13632608]
[1610407119973,0.08869,35133.0,35109.0,4.3633]
[1610407120975,0.11221,35143.0,35131.0,0.13632608]
[1610407121173,0.0555428,35145.0,35131.0,0.13632608]
[1610407122976,0.0555428,35145.0,35138.0,0.13632608]
[1610407124777,0.0555428,35145.0,35097.0,0.08243]
[1610407125077,0.0555428,35145.0,35089.0,0.10844]
[1610407125078,0.1346028,35145.0,35089.0,0.10844]
[1610407125278,4.7217,35144.0,35089.0,0.10844]
[1610407125479,4.7217,35144.0,35080.0,3.3097]
[1610407125480,0.2774,35143.0,35080.0,3.3097]
[1610407125879,0.5556,35143.0,35080.0,3.3097]
[1610407126981,0.5546,35143.0,35080.0,3.3097]
[1610407127280,0.5546,35143.0,35043.0,1.7832]
[1610407127482,0.5546,35143.0,35084.0,4.1161]
[1610407128482,0.2764,35143.0,35044.0,1.5]
[1610407129081,0.1346028,35145.0,35079.0,4.1414]
[1610407129281,0.1346028,35145.0,35044.0,1.5]
[1610407129482,0.1346028,35145.0,35091.0,4.2664]
[1610407129781,0.13632608,35137.0,35136.0,0.13632608]
[1610407130182,0.23817608,35137.0,35136.0,0.13632608]
[1610407130891,0.23817608,35137.0,35091.0,0.1114]
[1610407131084,0.23817608,35137.0,35123.0,3.2884]
[1610407131783,0.10185,35137.0,35123.0,3.2884]
[1610407132785,0.10185,35137.0,35129.0,0.13632608]
[1610407134890,0.10185,35137.0,35136.0,0.13632608]
[1610407135292,0.13632608,35143.0,35136.0,0.13632608]
[1610407135492,0.1346028,35145.0,35123.0,3.2884]
[1610407136793,0.1346028,35145.0,35135.0,0.13632608]
[1610407138697,0.1336028,35145.0,35135.0,0.13632608]
[1610407138895,0.1336028,35145.0,35123.0,3.2884]
[1610407138896,0.13632608,35136.0,35131.0,0.13632608]
[1610407139096,0.22410608,35136.0,35131.0,0.13632608]
[1610407140596,0.08778,35136.0,35123.0,3.2884]
[1610407140996,0.08778,35136.0,35135.0,0.13632608]
[1610407141396,0.08778,35136.0,35118.0,0.0956]
[1610407142396,0.08778,35136.0,35112.0,3.7543]
[1610407143098,0.08778,35136.0,35127.0,0.13632608]
[1610407143798,0.08778,35136.0,35113.0,0.10366]
[1610407144100,0.1336028,35145.0,35113.0,0.10366]
[1610407145601,0.1336028,35145.0,35119.0,3.6464]
[1610407146202,0.1336028,35145.0,35144.0,0.13632608]
[1610407146402,0.1336028,35145.0,35131.0,3.7882]
[1610407148705,0.1336028,35145.0,35144.0,0.13632608]
[1610407149305,0.1336028,35145.0,35131.0,3.7882]
[1610407150608,0.1336028,35145.0,35144.0,0.13632608]
[1610407154612,0.26992888,35145.0,35144.0,0.13632608]
[1610407155715,0.26992888,35145.0,35122.0,0.09307]
[1610407155916,0.1336028,35145.0,35116.0,4.1455]
[1610407156517,0.1336028,35145.0,35119.0,0.13632608]
[1610407156719,0.1336028,35145.0,35116.0,4.1455]
[1610407158121,0.1336028,35145.0,35104.0,0.10692]
[1610407158319,0.1336028,35145.0,35092.0,4.7453]
[1610407158520,0.13632608,35105.0,35098.0,0.13632608]
[1610407158820,0.13632608,35105.0,35091.0,0.1114]
[1610407159020,0.13632608,35105.0,35083.0,1.95903158]
[1610407159322,0.13632608,35105.0,35072.0,2.41111579]
[1610407159323,0.13632608,35105.0,35079.0,1.9655793]
[1610407159722,0.13632608,35105.0,35078.0,1.96682239]
[1610407160122,0.13632608,35105.0,35074.0,1.97042109]
[1610407160524,0.0853,35113.0,35073.0,4.6947]
[1610407160824,0.0853,35113.0,35073.0,0.09302]
[1610407161023,0.13632608,35074.0,35073.0,0.09302]
[1610407161623,0.10345,35098.0,35073.0,0.09302]
[1610407162223,0.10345,35098.0,35074.0,3.6776]
[1610407162424,0.0853,35113.0,35074.0,3.6776]
[1610407162723,0.00871246,35131.0,35074.0,3.6776]
[1610407163125,0.75183443,35137.0,35073.0,0.09302]
[1610407163126,0.00871212,35137.0,35122.0,0.13632608]
[1610407163526,0.00871159,35138.0,35122.0,0.13632608]
[1610407163725,0.00871038,35139.0,35106.0,3.3157]
[1610407164024,0.00871038,35139.0,35104.0,0.08024]
[1610407165027,0.28001056,35140.0,35104.0,0.08024]
[1610407165226,0.13632608,35119.0,35118.0,0.13632608]
[1610407165628,0.07184,35130.0,35118.0,0.13632608]
[1610407165827,0.07184,35130.0,35104.0,4.22864]
[1610407166127,0.07184,35130.0,35112.0,0.09906]
[1610407166328,0.1336028,35145.0,35112.0,0.09906]
[1610407167231,0.1336028,35145.0,35131.0,0.13632608]
[1610407169136,0.1336028,35145.0,35123.0,3.3065]
[1610407169137,0.1336028,35145.0,35144.0,0.13632608]
[1610407169537,0.1336028,35145.0,35123.0,3.3065]
[1610407169738,0.1336028,35145.0,35121.0,0.0769]
[1610407172338,0.26992888,35145.0,35144.0,0.13632608]
[1610407173540,0.1336028,35145.0,35144.0,0.13632608]
[1610407176242,0.0545428,35145.0,35144.0,0.13632608]
[1610407176844,0.0545428,35145.0,35139.0,4.2398]
[1610407178145,0.0545428,35145.0,35124.0,0.09615]
[1610407178346,0.0545428,35145.0,35142.0,3.9004]
[1610407178545,0.0545428,35145.0,35144.0,0.13632608]
[1610407180948,0.0087127,35177.0,35144.0,0.13632608]
[1610407181348,0.00871233,35180.0,35144.0,0.13632608]
[1610407181648,0.00870764,35183.0,35144.0,0.13632608]
[1610407182050,0.52109199,35184.0,35144.0,0.13632608]
[1610407182451,0.00870119,35185.0,35144.0,0.13632608]
[1610407182751,0.0087015,35186.0,35183.0,0.13632608]
[1610407183155,0.00870144,35185.0,35183.0,0.13632608]
[1610407183464,0.11657144,35185.0,35183.0,0.13632608]
[1610407183652,0.10787,35185.0,35175.0,3.2722]
[1610407184256,0.10787,35185.0,35131.0,0.10444]
[1610407184456,0.10787,35185.0,35127.0,3.432]
[1610407184762,0.10787,35185.0,35177.0,0.13632608]
[1610407184956,0.10787,35185.0,35135.0,0.08649]
[1610407185557,0.10787,35185.0,35151.0,4.1972]
[1610407186758,0.10787,35185.0,35184.0,0.13632608]
[1610407188658,0.13632608,35198.0,35184.0,0.13632608]
[1610407189059,0.00866994,35207.0,35184.0,0.13632608]
[1610407189462,0.00866929,35208.0,35184.0,0.13632608]
[1610407189761,0.008662,35209.0,35184.0,0.13632608]
[1610407190161,0.00866178,35211.0,35184.0,0.13632608]
[1610407190563,0.00865362,35213.0,35184.0,0.13632608]
[1610407190761,0.00865362,35213.0,35207.0,0.13632608]
[1610407191062,0.00865355,35214.0,35207.0,0.13632608]
[1610407191261,0.00865335,35215.0,35207.0,0.13632608]
[1610407191461,0.00865335,35215.0,35178.0,3.9942]
[1610407191661,0.08433335,35215.0,35178.0,3.9942]
[1610407192463,0.07568,35215.0,35178.0,3.9942]
[1610407193266,0.07568,35215.0,35214.0,0.13632608]
[1610407196667,0.05510082,35235.0,35214.0,0.13632608]
[1610407197367,0.05510082,35235.0,35234.0,0.13632608]
[1610407197567,0.05510082,35235.0,35218.0,4.0561]
[1610407197769,0.15666082,35235.0,35218.0,4.0561]
[1610407198668,0.15666082,35235.0,35180.0,0.0994]
[1610407198968,0.15666082,35235.0,35181.0,4.649]
[1610407199368,0.2799,35234.0,35214.0,0.13632608]
[1610407201271,0.2799,35234.0,35190.0,3.6021]
[1610407201671,0.2826,35233.0,35190.0,3.6021]
[1610407201972,0.2826,35233.0,35211.0,0.13632608]
[1610407203072,0.29115669,35233.0,35190.0,3.6021]
[1610407203476,0.00855355,35231.0,35190.0,3.6021]
[1610407203773,0.00855355,35231.0,35180.0,0.0994]
[1610407203973,3.4791,35229.0,35172.0,0.06925]
[1610407204174,1.5,35228.0,35161.0,3.6197]
[1610407204574,1.5,35228.0,35171.0,0.13632608]
[1610407204776,1.0,35208.0,35161.0,3.6197]
[1610407205175,0.2787,35207.0,35161.0,3.6197]
[1610407205376,0.2787,35207.0,35123.0,0.2749]
[1610407205576,0.5642,35207.0,35134.0,4.6455]
[1610407206281,1.5,35206.0,35134.0,4.6455]
[1610407206597,1.5,35206.0,35155.0,0.13632608]
[1610407206793,0.564,35195.0,35134.0,4.6455]
[1610407206988,1.5,35194.0,35091.0,2.5084018]
[1610407207186,1.5,35194.0,35086.0,2.65595485]
[1610407207187,3.3363,35171.0,35105.0,4.2688]
[1610407207497,4.0015,35152.0,35082.0,3.7601]
[1610407207777,5.58419,35152.0,35082.0,3.7601]
[1610407208684,0.13632608,35102.0,35082.0,3.7601]
[1610407208881,0.13632608,35102.0,35068.0,4.3454]
[1610407209080,0.10296,35114.0,35068.0,4.3454]
[1610407209280,0.10296,35114.0,35068.0,4.41965]
[1610407210182,0.10296,35114.0,35079.0,4.3345]
[1610407210382,0.10296,35114.0,35079.0,4.44667]
[1610407210583,1.0,35136.0,35079.0,4.44667]
[1610407210783,0.2724,35160.0,35079.0,5.94667]
[1610407211485,0.2724,35160.0,35151.0,0.13632608]
[1610407211683,0.284,35162.0,35151.0,0.13632608]
[1610407211883,0.12149538,35171.0,35151.0,0.13632608]
[1610407212083,0.09597,35171.0,35133.0,4.7724]
[1610407212882,0.08214,35152.0,35133.0,4.7724]
[1610407213483,0.08214,35152.0,35148.0,0.13632608]
[1610407214584,0.09597,35171.0,35148.0,0.13632608]
[1610407214785,0.02552077,35190.0,35148.0,0.13632608]
[1610407214985,0.02552077,35190.0,35142.0,0.10646]
[1610407215186,0.38122,35184.0,35142.0,0.10646]
[1610407215587,0.13632608,35149.0,35144.0,0.13632608]
[1610407216387,0.10639,35150.0,35144.0,0.13632608]
[1610407217487,0.10639,35150.0,35125.0,0.0825]
[1610407217689,0.13632608,35145.0,35117.0,0.09208]
[1610407218187,0.10639,35150.0,35117.0,0.09208]
[1610407218688,0.10639,35150.0,35102.0,0.09815]
[1610407219589,1.0,35163.0,35149.0,0.13632608]
[1610407220289,1.09203,35163.0,35136.0,0.10612]
[1610407220689,0.09203,35163.0,35136.0,0.10612]
[1610407220890,0.09203,35163.0,35108.0,3.1879]
[1610407221789,0.21567608,35143.0,35139.0,0.13632608]
[1610407222291,0.07935,35143.0,35108.0,3.1879]
[1610407223392,0.09203,35163.0,35108.0,3.1879]
[1610407223393,0.07941,35155.0,35108.0,3.1879]
[1610407223593,0.07941,35155.0,35142.0,0.13632608]
[1610407223997,0.07941,35155.0,35138.0,3.9753]
[1610407224499,0.09211,35171.0,35138.0,3.9753]
[1610407224703,0.09211,35171.0,35135.0,0.07642]
[1610407225297,0.09211,35171.0,35136.0,0.4679]
[1610407225999,0.09211,35171.0,35170.0,0.13632608]
[1610407226401,0.09211,35171.0,35154.0,0.09605]
[1610407228404,0.09211,35171.0,35169.0,0.13632608]
[1610407228805,0.09211,35171.0,35145.0,0.10082]
[1610407229004,0.13632608,35180.0,35145.0,0.10082]
[1610407229207,4.1763,35194.0,35145.0,0.10082]
[1610407230509,0.13632608,35182.0,35165.0,0.13632608]
[1610407230709,0.21828608,35182.0,35165.0,0.13632608]
[1610407231008,0.08196,35182.0,35165.0,0.13632608]
[1610407231811,0.2937,35205.0,35165.0,0.13632608]
[1610407232010,0.2937,35205.0,35165.0,0.24433608]
[1610407232210,0.2937,35205.0,35165.0,0.10801]
[1610407233212,0.2937,35205.0,35193.0,0.13632608]
[1610407233912,1.7937,35205.0,35173.0,0.0748]
[1610407234813,1.7937,35205.0,35165.0,0.10801]
[1610407235213,1.7937,35205.0,35145.0,0.10082]
[1610407235415,1.7937,35205.0,35142.0,4.1922]
[1610407235416,1.52572008,35202.0,35142.0,4.1922]
[1610407235715,0.00863221,35198.0,35142.0,4.1922]
[1610407235915,0.10729221,35198.0,35142.0,4.1922]
[1610407236116,0.00863344,35192.0,35142.0,4.1922]
[1610407236316,0.00863344,35192.0,35101.0,0.2827]
[1610407236519,0.00863489,35191.0,35123.0,4.3389]
[1610407236717,1.0,35174.0,35123.0,4.3389]
[1610407236919,1.5,35173.0,35089.0,2.50960093]
[1610407237118,1.78,35173.0,35110.0,3.7348]
[1610407237319,1.78,35173.0,35110.0,0.10864]
[1610407237521,0.2717,35172.0,35110.0,0.10864]
[1610407237720,1.5,35171.0,35110.0,0.10864]
[1610407238422,1.5,35171.0,35133.0,0.13632608]
[1610407239820,1.7717,35172.0,35133.0,0.13632608]
[1610407240022,0.2717,35172.0,35133.0,0.13632608]
[1610407240420,0.13632608,35134.0,35129.0,0.10379]
[1610407240820,0.10498,35148.0,35110.0,0.10864]
[1610407242421,1.60498,35148.0,35110.0,0.07571]
[1610407242625,3.9468,35145.0,35110.0,0.07571]
[1610407243021,0.2881,35144.0,35110.0,0.07571]
[1610407243824,3.9468,35145.0,35110.0,0.07571]
[1610407244028,0.10498,35148.0,35110.0,0.07571]
[1610407244324,0.13632608,35123.0,35122.0,0.13632608]
[1610407244824,0.11166,35140.0,35110.0,0.07571]
[1610407247324,1.61166,35140.0,35110.0,0.07571]
[1610407247525,1.61166,35140.0,35104.0,0.06938]
[1610407248025,0.09086,35129.0,35104.0,0.06938]
[1610407248226,4.318,35118.0,35104.0,0.06938]
[1610407248527,0.79922608,35105.0,35104.0,0.06938]
[1610407248727,0.87247608,35105.0,35075.0,0.13632608]
[1610407248927,0.20957608,35105.0,35075.0,0.13632608]
[1610407249129,4.3931,35100.0,35075.0,0.13632608]
[1610407249527,0.20957608,35105.0,35034.0,2.62623945]
[1610407249728,4.0969,35084.0,35034.0,2.69544945]
[1610407249928,4.0969,35084.0,35034.0,0.06921]
[1610407250430,4.17616,35084.0,35039.0,0.13632608]
[1610407250627,4.17616,35084.0,35034.0,0.06921]
[1610407250828,0.07926,35084.0,35034.0,0.06921]
[1610407251228,3.6078,35063.0,35034.0,0.06921]
[1610407251529,3.3106,35034.0,35026.0,0.08934]
[1610407252228,3.2906,35034.0,35026.0,0.08934]
[1610407252528,0.13632608,35027.0,35001.0,0.13632608]
[1610407254128,0.0914,35050.0,34996.0,3.6753]
[1610407254329,0.2854,35063.0,34996.0,3.76489]
[1610407254529,4.7416,35072.0,34996.0,3.76489]
[1610407254729,0.13632608,35056.0,35052.0,0.13632608]
[1610407255029,0.13632608,35056.0,35019.0,4.5641]
[1610407255030,0.23071608,35056.0,35019.0,4.5641]
[1610407255629,0.09439,35056.0,35019.0,4.5641]
[1610407256129,3.6713,35076.0,35019.0,4.5641]
[1610407256430,0.02540215,35096.0,35019.0,0.08179]
[1610407256630,0.13632608,35043.0,35032.0,0.13632608]
[1610407257232,0.13632608,35043.0,35019.0,0.08179]
[1610407257632,0.07772,35067.0,35019.0,0.08179]
[1610407258034,0.07772,35067.0,35021.0,3.5528]
[1610407258233,0.11019,35079.0,35021.0,3.5528]
[1610407258633,0.73485182,35102.0,35021.0,3.5528]
[1610407258634,0.02537104,35104.0,35056.0,0.13632608]
[1610407258934,0.73459196,35110.0,35056.0,0.13632608]
[1610407258935,0.0253688,35110.0,35056.0,0.22902608]
[1610407259234,0.0253688,35110.0,35056.0,0.0927]
[1610407259434,0.00851176,35112.0,35056.0,0.0927]
[1610407261339,0.13632608,35057.0,35056.0,0.0927]
[1610407262341,0.13632608,35057.0,35029.0,4.5954]
[1610407262741,0.10244,35070.0,35029.0,4.5954]
[1610407262941,0.10244,35070.0,35029.0,4.70774]
[1610407263343,0.10244,35070.0,35032.0,0.13632608]
[1610407264042,0.09108,35078.0,35032.0,0.13632608]
[1610407264241,3.263,35094.0,35032.0,0.13632608]
[1610407264544,3.263,35094.0,35029.0,4.70774]
[1610407264744,3.36661,35094.0,35029.0,4.70774]
[1610407265745,3.36661,35094.0,35055.0,0.13632608]
[1610407266245,3.36661,35094.0,35047.0,0.0961]
[1610407267748,0.13632608,35048.0,35045.0,0.13632608]
[1610407267950,0.13632608,35048.0,35029.0,0.11234]
[1610407268151,0.13632608,35048.0,35019.0,0.08179]
[1610407268652,0.13632608,35048.0,34996.0,3.86579]
[1610407268850,0.1123,35049.0,34996.0,3.86579]
[1610407269552,0.0708,35057.0,34996.0,3.86579]
[1610407269753,0.00850163,35090.0,34996.0,0.08959]
[1610407269951,0.13632608,35079.0,35069.0,0.13632608]
[1610407270357,0.23485608,35079.0,35069.0,0.13632608]
[1610407271053,0.09853,35079.0,35051.0,3.3231]
[1610407271255,0.09853,35079.0,35012.0,0.09703]
[1610407271454,0.2768,35121.0,35012.0,0.09703]
[1610407271656,3.6399,35108.0,35012.0,0.09703]
[1610407271855,3.73009,35108.0,35012.0,0.09703]
[1610407272277,0.09019,35108.0,35012.0,0.09703]
[1610407272555,0.09019,35108.0,35033.0,4.6316]
[1610407272755,0.09019,35108.0,35091.0,0.13632608]
[1610407273280,0.00848811,35129.0,35091.0,0.23687608]
[1610407273480,0.01197816,35139.0,35091.0,0.10055]
[1610407273958,0.01197562,35153.0,35096.0,3.5854]
[1610407274658,0.73200999,35159.0,35096.0,3.5854]
[1610407274659,0.00349226,35168.0,35096.0,3.5854]
[1610407274959,0.13632608,35140.0,35139.0,0.13632608]
[1610407275358,0.07006,35168.0,35096.0,3.5854]
[1610407277059,0.13632608,35142.0,35133.0,0.13632608]
[1610407277260,0.09037,35176.0,35133.0,0.13632608]
[1610407277460,0.09037,35176.0,35133.0,0.21753608]
[1610407278060,0.6147,35174.0,35133.0,0.21753608]
[1610407278259,2.1147,35174.0,35133.0,0.08121]
[1610407278460,2.1147,35174.0,35096.0,3.5854]
[1610407278660,0.6147,35174.0,35096.0,3.5854]
[1610407279063,0.01197905,35171.0,35096.0,3.5854]
[1610407279666,0.00349426,35164.0,35096.0,3.5854]
[1610407279964,0.07988426,35164.0,35096.0,3.5854]
[1610407280264,0.00349446,35160.0,35096.0,3.5854]
[1610407280665,0.01198219,35161.0,35108.0,0.13632608]
[1610407280869,1.0,35158.0,35108.0,0.13632608]
[1610407281265,0.00349551,35154.0,35108.0,0.13632608]
[1610407281467,0.09268551,35154.0,35107.0,0.1075]
[1610407281765,0.08919,35154.0,35107.0,0.1075]
[1610407281966,0.08919,35154.0,35091.0,0.10055]
[1610407282268,0.00349723,35147.0,35083.0,0.1135]
[1610407282583,1.5,35136.0,35053.0,3.9984]
[1610407282966,0.00349894,35135.0,35053.0,3.9984]
[1610407283165,0.13632608,35054.0,35053.0,3.9984]
[1610407283475,0.13632608,35054.0,35045.0,0.13632608]
[1610407283879,0.08068,35083.0,35025.0,4.4892]
[1610407284077,0.08068,35083.0,35025.0,4.56721]
[1610407285272,1.0,35089.0,35076.0,0.13632608]
[1610407285969,1.0,35089.0,35072.0,0.09857]
[1610407286772,0.0994,35119.0,35072.0,0.09857]
[1610407287174,0.13632608,35115.0,35114.0,0.13632608]
[1610407287874,0.0912,35137.0,35114.0,0.13632608]
[1610407288378,0.10119511,35154.0,35114.0,0.21060608]
[1610407288775,0.08919,35154.0,35114.0,0.21060608]
[1610407288974,3.9814,35163.0,35114.0,0.21060608]
[1610407289181,0.13632608,35115.0,35114.0,0.21060608]
[1610407289775,0.08971,35139.0,35114.0,0.07428]
[1610407291076,3.9814,35163.0,35114.0,0.07428]
[1610407291278,0.07639,35164.0,35114.0,0.07428]
[1610407291478,0.2827,35167.0,35114.0,0.07428]
[1610407291779,0.2851,35168.0,35134.0,0.13632608]
[1610407291978,0.2851,35168.0,35134.0,0.20737608]
[1610407292178,0.2851,35168.0,35134.0,0.07105]
[1610407292681,1.5,35167.0,35134.0,0.07105]
[1610407292879,1.60424,35167.0,35134.0,0.07105]
[1610407293079,4.3321,35163.0,35114.0,0.07428]
[1610407293282,1.5,35162.0,35083.0,3.8202]
[1610407293783,0.00351821,35161.0,35083.0,3.8202]
[1610407294186,0.01206328,35148.0,35083.0,3.8202]
[1610407294386,0.22428608,35116.0,35096.0,0.13632608]
[1610407294986,0.08796,35116.0,35096.0,0.13632608]
[1610407295188,0.08796,35116.0,35083.0,3.8202]
[1610407295585,0.08959,35135.0,35083.0,3.90076]
[1610407299395,0.08959,35135.0,35103.0,0.13632608]
[1610407299696,0.03959,35135.0,35103.0,0.10278]
[1610407300394,0.01212177,35139.0,35103.0,0.10278]
[1610407300596,0.00353798,35133.0,35103.0,0.10278]
[1610407301196,0.00353845,35132.0,35083.0,0.08056]
[1610407301396,0.13632608,35084.0,35074.0,0.13632608]
[1610407301798,0.09538,35097.0,35072.0,0.09857]
[1610407302197,0.09538,35097.0,35044.0,3.4411]
[1610407302398,0.09538,35097.0,35072.0,0.10627]
[1610407303898,0.13632608,35073.0,35072.0,0.10627]
[1610407305201,0.13632608,35073.0,35029.0,4.5245]
[1610407306005,0.13632608,35044.0,35035.0,0.13632608]
[1610407306303,0.13632608,35044.0,35009.0,2.70181193]
[1610407306803,0.09671,35076.0,35005.0,2.70957912]
[1610407307003,0.09671,35076.0,35005.0,2.79246912]
[1610407307207,0.09671,35076.0,35005.0,0.08289]
[1610407307405,3.6245,35078.0,35005.0,0.08289]
[1610407307705,3.6245,35078.0,35006.0,2.71098539]
[1610407307907,0.13632608,35056.0,35047.0,0.13632608]
[1610407308111,0.13632608,35056.0,35006.0,2.71098539]
[1610407308308,0.13632608,35056.0,35010.0,2.70498646]
[1610407309208,0.13632608,35056.0,35005.0,0.08289]
[1610407309508,4.33676608,35056.0,35005.0,0.08289]
[1610407310007,0.13632608,35027.0,35008.0,0.13632608]
[1610407310211,0.13632608,35027.0,35005.0,0.08289]
[1610407311508,0.13632608,35027.0,34966.0,2.74084739]
[1610407311908,0.13632608,35027.0,35017.0,0.13632608]
[1610407312208,0.13632608,35027.0,35017.0,0.24535608]
[1610407312911,0.00354305,35066.0,35017.0,0.10903]
[1610407313111,0.6236,35055.0,35017.0,0.10903]
[1610407313811,1.5,35054.0,35017.0,0.10903]
[1610407314212,0.13632608,35018.0,35017.0,0.10903]
[1610407315716,1.63632608,35018.0,34970.0,3.8316]
[1610407315917,0.13632608,35018.0,34963.0,2.73873686]
[1610407316117,0.13632608,35018.0,34959.0,2.74184664]
[1610407316418,3.41554,35022.0,34959.0,2.74184664]
[1610407316618,3.41554,35022.0,34959.0,0.09923]
[1610407317320,0.09744,35022.0,34959.0,0.09923]
[1610407317520,4.7303,35008.0,34959.0,0.09923]
[1610407317720,4.8253,35008.0,34959.0,0.09923]
[1610407318223,0.13632608,34960.0,34959.0,0.09923]
[1610407318821,0.11632608,34960.0,34959.0,0.09923]
[1610407319021,0.10813,34990.0,34959.0,0.09923]
[1610407319221,1.0,35001.0,34959.0,0.09923]
[1610407320727,4.1806,35019.0,34959.0,0.09923]
[1610407320925,4.1806,35019.0,34989.0,0.13632608]
[1610407321126,0.09575,35033.0,34989.0,0.23330608]
[1610407321528,0.2996,35035.0,34989.0,0.23330608]
[1610407322931,0.2996,35035.0,35001.0,0.13632608]
[1610407323131,0.2996,35035.0,35001.0,0.07635]
[1610407324032,1.5,35034.0,34981.0,0.09617]
[1610407324233,3.5173,35031.0,34981.0,0.09617]
[1610407325036,0.13632608,34982.0,34981.0,0.09617]
[1610407326639,0.1043,34984.0,34959.0,0.09923]
[1610407327039,0.1043,34984.0,34904.0,5.66179823]
[1610407327241,0.13632608,34960.0,34959.0,0.09445]
[1610407327642,0.11632608,34960.0,34959.0,0.09445]
[1610407328843,0.1043,34984.0,34959.0,0.09445]
[1610407329343,0.13632608,34960.0,34959.0,0.09445]
[1610407331246,0.11632608,34960.0,34959.0,0.09445]
[1610407332345,0.11632608,34960.0,34900.0,5.4081]
[1610407332545,0.11632608,34960.0,34900.0,1.0]
[1610407333348,0.0709,34962.0,34900.0,1.0]
[1610407333349,0.0709,34962.0,34900.0,1.10855]
[1610407333748,0.13632608,34901.0,34900.0,1.10855]
[1610407333949,0.0709,34962.0,34900.0,1.10855]
[1610407334157,4.6617,34940.0,34900.0,1.10855]
[1610407335751,0.13632608,34901.0,34900.0,1.10855]
[1610407338056,0.11632608,34901.0,34900.0,1.10855]
[1610407338255,0.11029,34927.0,34900.0,1.10855]
[1610407339857,0.13632608,34901.0,34900.0,1.10855]
[1610407341659,0.11632608,34901.0,34900.0,1.10855]
[1610407344661,0.11029,34927.0,34900.0,1.10855]
[1610407344862,0.2806,34940.0,34900.0,1.10855]
[1610407345963,0.2806,34940.0,34900.0,1.24487608]
[1610407346165,0.09771,34941.0,34900.0,1.24487608]
[1610407346366,0.2933,34975.0,34900.0,1.10855]
[1610407346664,0.2757,34975.0,34901.0,3.5661]
[1610407346864,3.6759,34995.0,34901.0,3.5661]
[1610407347566,0.01174451,35005.0,34900.0,1.10855]
[1610407347764,1.73689473,35054.0,34900.0,1.10855]
[1610407347765,0.01174358,35025.0,34900.0,1.10855]
[1610407347964,0.01174358,35025.0,34970.0,0.13632608]
[1610407347965,0.13632608,34984.0,34970.0,0.13632608]
[1610407348265,0.13632608,34984.0,34917.0,3.6385]
[1610407348867,0.08575,35006.0,34917.0,3.6385]
[1610407349067,0.08657,34998.0,34917.0,3.74911]
[1610407350166,0.08657,34998.0,34967.0,0.13632608]
[1610407350465,0.08657,34998.0,34967.0,0.24919608]
[1610407351166,0.08575,35006.0,34967.0,0.24919608]
[1610407351967,0.63315,35006.0,34967.0,0.11287]
[1610407352168,1.58575,35006.0,34967.0,0.07083]
[1610407352468,4.6892,34990.0,34967.0,0.07083]
[1610407352669,6.27578,34990.0,34967.0,0.07083]
[1610407352868,6.27578,34990.0,34939.0,0.11238]
[1610407353370,4.77578,34990.0,34939.0,0.11238]
[1610407353670,0.13632608,34940.0,34917.0,0.11061]
[1610407353872,0.23181608,34940.0,34917.0,0.11061]
[1610407354073,0.23181608,34940.0,34900.0,1.10855]
[1610407355075,0.13632608,34940.0,34900.0,1.10855]
[1610407355475,3.2542,34964.0,34900.0,1.10855]
[1610407355675,0.00346002,34994.0,34943.0,0.13632608]
[1610407355975,0.00346002,34994.0,34943.0,0.08696]
[1610407356375,0.0034584,35004.0,34943.0,0.08696]
[1610407356876,0.08575,35006.0,34943.0,0.08696]
[1610407357076,3.45106275,35021.0,34943.0,0.08696]
[1610407357477,3.4476,35021.0,34943.0,0.08696]
[1610407357678,3.4476,35021.0,34970.0,0.13632608]
[1610407357878,1.5,35020.0,34970.0,0.10398]
[1610407358278,1.57412,35020.0,34970.0,0.10398]
[1610407358581,1.57412,35020.0,34943.0,0.08696]
[1610407358786,1.0,35008.0,34943.0,0.08696]
[1610407358981,1.09239,35008.0,34943.0,0.08696]
[1610407359579,1.09239,35008.0,34948.0,0.13632608]
[1610407359878,1.09587181,35008.0,34948.0,0.13632608]
[1610407360379,1.09239,35008.0,34948.0,0.13632608]
[1610407360778,0.09239,35008.0,34948.0,0.13632608]
[1610407361681,0.09239,35008.0,34943.0,0.08696]
[1610407361682,0.09239,35008.0,34952.0,0.13632608]
[1610407361879,0.09239,35008.0,34952.0,0.24185608]
[1610407362079,0.09588309,35008.0,34952.0,0.24185608]
[1610407362280,0.09588309,35008.0,34952.0,0.10553]
[1610407362579,0.00349894,35005.0,34952.0,0.10553]
[1610407362781,3.7201,34996.0,34943.0,0.08696]
[1610407362979,5.2201,34996.0,34916.0,3.4864]
[1610407363279,0.00349997,34992.0,34916.0,3.4864]
[1610407363580,0.00350614,34987.0,34916.0,3.4864]
[1610407363780,0.13632608,34917.0,34915.0,0.13632608]
[1610407364284,0.08059,34952.0,34915.0,0.13632608]
[1610407364680,0.08059,34952.0,34915.0,0.25021608]
[1610407365281,0.00351171,34980.0,34915.0,0.25021608]
[1610407365482,0.00852844,34981.0,34915.0,0.25021608]
[1610407365483,0.00351076,34982.0,34915.0,0.25021608]
[1610407365681,0.00351076,34982.0,34915.0,0.11389]
[1610407366184,0.13632608,34955.0,34943.0,0.13632608]
[1610407366383,0.13632608,34955.0,34915.0,0.11389]
[1610407366584,0.10133,34969.0,34915.0,0.11389]
[1610407368585,0.13632608,34943.0,34927.0,0.13632608]
[1610407370389,0.10133,34969.0,34927.0,0.13632608]
[1610407370587,0.10133,34969.0,34956.0,0.13632608]